Workbook

Sheet Табыстылық талдауы
B2: Тапсырыс берушінің кірістілігінің сараптамасы
B3: 20 қаңтар 2013 жыл | D3: КОМПАНИЯ АТЫ
B6: Тапсырыс беруші әрекеті | C6: Тапсырыс беруші 1 | D6: Тапсырыс беруші 2 | E6: Тапсырыс беруші 3 | F6: Жалпы
B7: Белсенді әрекет ететін тапсырыс берушілер саны—Кезеңнің басы | C7: 5 | D7: 8 | E7: 8 | F7: =SUM(C7:E7) -> 21
B8: Жаңадан қосылған тапсырыс берушілер саны | C8: 2 | D8: 4 | E8: 4 | F8: =SUM(C8:E8) -> 10
B9: Жоғалтқан/қол үзген тапсырыс берушілер саны | C9: -1 | D9: -2 | E9: -2 | F9: -5
B10: Белсенді әрекет ететін тапсырыс берушілер саны—Кезеңнің соңы | C10: =SUBTOTAL(109,'Табыстылық талдауы'!$C$7:$C$9) -> 6 | D10: =SUBTOTAL(109,'Табыстылық талдауы'!$D$7:$D$9) -> 10 | E10: =SUBTOTAL(109,'Табыстылық талдауы'!$E$7:$E$9) -> 10 | F10: 26
B12: Кірістілік сараптамасы
B13: Әр сегментке шаққандағы кіріс | C13: Т1,500,000 | D13: Т1,800,000 | E13: Т2,500,000 | F13: =SUM('Табыстылық талдауы'!$C13:$E13) -> Т5,800,000
B14: Үстемелеу | C14: =C13/$F$13 -> 25.9% | D14: =D13/$F$13 -> 31.0% | E14: 43.1% | F14: =SUM(C14:E14) -> 100.0%
B16: Сатуға қатысты шығын
B17: Тұрақты қызмет және қолдау көрсету шығындары | C17: Т1,000,000 | D17: Т1,400,000 | E17: Т1,400,000 | F17: =SUM('Табыстылық талдауы'!$C17:$E17) -> Т3,800,000
B18: Тапсырыс берушінің өзге де тікелей шығындары | C18: 200,000 | D18: 100,000 | E18: 100,000 | F18: =SUM('Табыстылық талдауы'!$C18:$E18) -> 400,000
B19: Жалпы сатуға қатысты шығын | C19: =SUBTOTAL(109,'Табыстылық талдауы'!$C$17:$C$18) -> 1,200,000 | D19: =SUBTOTAL(109,'Табыстылық талдауы'!$D$17:$D$18) -> 1,500,000 | E19: =SUBTOTAL(109,'Табыстылық талдауы'!$E$17:$E$18) -> 1,500,000 | F19: =SUBTOTAL(109,'Табыстылық талдауы'!$F$17:$F$18) -> 4,200,000
B20: Жалпы кіріс | C20: =C13-'Табыстылық талдауы'!$C$19 -> Т300,000 | D20: =D13-'Табыстылық талдауы'!$D$19 -> Т300,000 | E20: =E13-'Табыстылық талдауы'!$E$19 -> Т1,000,000 | F20: =F13-'Табыстылық талдауы'!$F$19 -> Т1,600,000
B21: Үстемелеу | C21: =MAX(0,MIN(1,C20/$F$20)) -> 18.8% | D21: =MAX(0,MIN(1,D20/$F$20)) -> 18.8% | E21: 62.5% | F21: =SUM('Табыстылық талдауы'!$C21:$E21) -> 100.0%
B23: Өзге шығындар
B24: Тапсырыс берушіні табу | C24: Т105,000 | D24: Т120,000 | E24: Т235,000 | F24: =SUM('Табыстылық талдауы'!$C24:$E24) -> Т460,000
B25: Тапсырыс берушінің маркетингі | C25: 150,000 | D25: 125,000 | E25: 275,000 | F25: =SUM('Табыстылық талдауы'!$C25:$E25) -> Т550,000
B26: Тапсырыс берушіден қол үзу | C26: 80,000 | D26: 190,000 | E26: 140,000 | F26: =SUM('Табыстылық талдауы'!$C26:$E26) -> Т410,000
B27: Тапсырыс берушіге қатысты жалпы өзге шығындар | C27: =SUBTOTAL(109,'Табыстылық талдауы'!$C$24:$C$26) -> 335,000 | D27: =SUBTOTAL(109,'Табыстылық талдауы'!$D$24:$D$26) -> 435,000 | E27: =SUBTOTAL(109,'Табыстылық талдауы'!$E$24:$E$26) -> 650,000 | F27: =SUBTOTAL(109,'Табыстылық талдауы'!$F$24:$F$26) -> 1,420,000
B29: Сегментке шаққандағы тапсырыс беруші пайдасы | C29: =C20-C27 -> -Т35,000 | D29: =D20-D27 -> -Т135,000 | E29: =E20-E27 -> Т350,000 | F29: =F20-'Табыстылық талдауы'!$F$27 -> Т180,000
B30: Үстемелеу | C30: =MAX(0,MIN(1,C29/$F$29)) -> 0.0% | D30: =MAX(0,MIN(1,D29/$F$29)) -> 0.0% | E30: 100.0% | F30: =SUM('Табыстылық талдауы'!$C30:$E30) -> 100.0%
B32: Қорытынды көрсеткіштер
B33: Әр жаңа қабылданған тапсырыс берушіге қатысты орташа шығын | C33: =C24/C8 -> Т52,500 | D33: =D24/D8 -> Т30,000 | E33: =E24/E8 -> Т58,750
B34: Әр қол үзген тапсырыс берушіге қатысты орташа шығын | C34: =-C26/C9 -> Т80,000 | D34: =-D26/D9 -> Т95,000 | E34: =-E26/E9 -> Т70,000
B35: Әр белсенді әрекет ететін тапсырыс берушіге қатысты орташа маркетингтік шығын | C35: =C25/'Табыстылық талдауы'!$C$10 -> Т25,000 | D35: =D25/'Табыстылық талдауы'!$D$10 -> Т12,500 | E35: =E25/'Табыстылық талдауы'!$E$10 -> Т27,500
B36: Әр тапсырыс берушіге шаққандағы орташа пайда немесе шығын | C36: =C29/'Табыстылық талдауы'!$C$10 -> -Т5,833.33 | D36: =D29/'Табыстылық талдауы'!$D$10 -> -Т13,500.00 | E36: =E29/'Табыстылық талдауы'!$E$10 -> Т35,000.00

Sheet Жиынтық өлшемдер диаграммасы
B2: Әр тапсырыс берушіге қатысты қорытынды көрсеткіштер
B3: =ЕсепКүні -> 20 қаңтар 2013 жыл | R3: =КомпанияАтауы -> КОМПАНИЯ АТЫ
